[Event "Early-Titled-Tuesday-Blitz-June-18-2024"]
[Site "Chess.com"]
[Date "2024.06.18"]
[Round "2"]
[White "drdaro"]
[Black "Patricius007"]
[Result "0-1"]
[WhiteElo "2314"]
[BlackElo "2535"]
[TimeControl "180+1"]
[EndTime "8:17:03 PDT"]
[Termination "Patricius007 won on time"]

1. Nf3 {[%clk 0:02:49.4]} 1... d5 {[%clk 0:02:59.5]} 2. g3 {[%clk 0:02:47.2]}
2... c5 {[%clk 0:03:00]} 3. Bg2 {[%clk 0:02:47.3]} 3... Nc6 {[%clk 0:03:00.6]}
4. O-O {[%clk 0:02:47.2]} 4... e5 {[%clk 0:03:00.6]} 5. d3 {[%clk 0:02:47.2]}
5... h5 {[%clk 0:03:00.5]} 6. h4 {[%clk 0:02:43.2]} 6... Be7 {[%clk 0:03:00.7]}
7. Nbd2 {[%clk 0:02:36.6]} 7... Bg4 {[%clk 0:03:00.9]} 8. c3 {[%clk 0:02:35]}
8... Qd7 {[%clk 0:03:00.7]} 9. Qc2 {[%clk 0:02:32.2]} 9... Bh3 {[%clk
0:03:00.9]} 10. e4 {[%clk 0:02:30.4]} 10... Bxg2 {[%clk 0:03:01.2]} 11. Kxg2
{[%clk 0:02:30.6]} 11... d4 {[%clk 0:03:01.7]} 12. Nc4 {[%clk 0:02:12.4]} 12...
f6 {[%clk 0:03:00.5]} 13. a4 {[%clk 0:02:10.3]} 13... Nh6 {[%clk 0:02:58.2]} 14.
cxd4 {[%clk 0:02:08.8]} 14... cxd4 {[%clk 0:02:58.1]} 15. Bxh6 {[%clk
0:01:51.6]} 15... Rxh6 {[%clk 0:02:57.8]} 16. Qb3 {[%clk 0:01:45.2]} 16... Rd8
{[%clk 0:02:42.6]} 17. Rac1 {[%clk 0:01:25.6]} 17... Rg6 {[%clk 0:02:35.7]} 18.
Kh2 {[%clk 0:00:49.9]} 18... b6 {[%clk 0:02:24.6]} 19. a5 {[%clk 0:00:40.4]}
19... bxa5 {[%clk 0:02:16.7]} 20. Na3 {[%clk 0:00:28.2]} 20... Nb4 {[%clk
0:02:12.2]} 21. Qg8+ {[%clk 0:00:16.2]} 21... Bf8 {[%clk 0:02:08.3]} 22. Qc4
{[%clk 0:00:16.8]} 22... Rg4 {[%clk 0:02:02.2]} 23. Nb5 {[%clk 0:00:11.9]} 23...
Bd6 {[%clk 0:01:45.8]} 24. Qg8+ {[%clk 0:00:10.4]} 24... Ke7 {[%clk 0:01:46.4]}
25. Qc4 {[%clk 0:00:06.6]} 25... a6 {[%clk 0:01:43.3]} 26. Nxd6 {[%clk
0:00:06.5]} 26... Qxd6 {[%clk 0:01:44.2]} 27. Qc7+ {[%clk 0:00:04.4]} 27... Rd7
{[%clk 0:01:42.5]} 28. Qc8 {[%clk 0:00:02.7]} 28... Nxd3 {[%clk 0:01:40.7]} 29.
Rc6 {[%clk 0:00:01.9]} 29... Qb4 {[%clk 0:01:26.9]} 30. Qg8 {[%clk 0:00:02]}
30... Nc5 {[%clk 0:01:16.7]} 0-1

[Event "Early-Titled-Tuesday-Blitz-June-18-2024"]
[Site "Chess.com"]
[Date "2024.06.18"]
[Round "2"]
[White "ilya2700"]
[Black "masterofpuppets2"]
[Result "0-1"]
[WhiteElo "2213"]
[BlackElo "2485"]
[TimeControl "180+1"]
[EndTime "8:17:03 PDT"]
[Termination "masterofpuppets2 won on time"]

1. e4 {[%clk 0:03:00]} 1... c6 {[%clk 0:02:59.4]} 2. d4 {[%clk 0:03:00]} 2... d5
{[%clk 0:03:00.3]} 3. exd5 {[%clk 0:03:00.9]} 3... cxd5 {[%clk 0:03:00.5]} 4.
Bd3 {[%clk 0:03:01.5]} 4... Nc6 {[%clk 0:03:00.5]} 5. c3 {[%clk 0:03:02.1]} 5...
Qc7 {[%clk 0:03:00.3]} 6. h3 {[%clk 0:03:01.2]} 6... e6 {[%clk 0:02:59.7]} 7.
Nf3 {[%clk 0:03:01.4]} 7... Bd6 {[%clk 0:03:00.4]} 8. O-O {[%clk 0:03:01.9]}
8... Nge7 {[%clk 0:03:00.7]} 9. Re1 {[%clk 0:03:01.7]} 9... Bd7 {[%clk
0:03:00.7]} 10. a4 {[%clk 0:02:59]} 10... O-O {[%clk 0:02:59.3]} 11. Bxh7+
{[%clk 0:02:43.9]} 11... Kxh7 {[%clk 0:03:00.2]} 12. Ng5+ {[%clk 0:02:44.3]}
12... Kg6 {[%clk 0:03:00.3]} 13. Qg4 {[%clk 0:02:23.7]} 13... f5 {[%clk
0:02:58.3]} 14. Qf3 {[%clk 0:01:41.6]} 14... e5 {[%clk 0:02:40.3]} 15. h4 {[%clk
0:01:14.8]} 15... Rh8 {[%clk 0:02:27.6]} 16. dxe5 {[%clk 0:00:44.2]} 16... Bxe5
{[%clk 0:02:28.5]} 17. b4 {[%clk 0:00:28.2]} 17... a6 {[%clk 0:02:26.3]} 18. Ra2
{[%clk 0:00:21.3]} 18... Rxh4 {[%clk 0:02:08.5]} 19. Rae2 {[%clk 0:00:20.2]}
19... Rah8 {[%clk 0:02:07.5]} 20. Nh3 {[%clk 0:00:19.7]} 20... Kf7 {[%clk
0:02:01.8]} 21. b5 {[%clk 0:00:19.3]} 21... axb5 {[%clk 0:01:49.5]} 22. axb5
{[%clk 0:00:19.7]} 22... Bh2+ {[%clk 0:01:50.1]} 23. Kf1 {[%clk 0:00:15.9]}
23... Ne5 {[%clk 0:01:51]} 24. Qe3 {[%clk 0:00:05.3]} 24... N7g6 {[%clk
0:01:33]} 25. f4 {[%clk 0:00:04.8]} 25... Bxf4 {[%clk 0:01:30.4]} 26. Nxf4
{[%clk 0:00:02.7]} 26... Rxf4+ {[%clk 0:01:31.3]} 27. Kg1 {[%clk 0:00:02.7]}
27... Re4 {[%clk 0:01:32]} 28. Qf3 {[%clk 0:00:01.8]} 28... Qb6+ {[%clk
0:01:31.8]} 29. Qf2 {[%clk 0:00:01.6]} 29... Qxf2+ {[%clk 0:01:28.4]} 30. Kxf2
{[%clk 0:00:01.7]} 30... Ng4+ {[%clk 0:01:28.3]} 0-1

[Event "Early-Titled-Tuesday-Blitz-June-18-2024"]
[Site "Chess.com"]
[Date "2024.06.18"]
[Round "2"]
[White "Squirlolz"]
[Black "BestestBP"]
[Result "1-0"]
[WhiteElo "2505"]
[BlackElo "2260"]
[TimeControl "180+1"]
[EndTime "8:17:04 PDT"]
[Termination "Squirlolz won by resignation"]

1. Nf3 {[%clk 0:03:00.9]} 1... Nf6 {[%clk 0:02:48.4]} 2. g3 {[%clk 0:02:49]}
2... b6 {[%clk 0:02:47.8]} 3. Bg2 {[%clk 0:02:49.9]} 3... Bb7 {[%clk 0:02:48.4]}
4. O-O {[%clk 0:02:50.2]} 4... g6 {[%clk 0:02:49]} 5. b4 {[%clk 0:02:50.4]} 5...
Bg7 {[%clk 0:02:49.5]} 6. Bb2 {[%clk 0:02:50.9]} 6... O-O {[%clk 0:02:50.2]} 7.
a4 {[%clk 0:02:51]} 7... d6 {[%clk 0:02:50.7]} 8. a5 {[%clk 0:02:51.1]} 8... a6
{[%clk 0:02:48.7]} 9. axb6 {[%clk 0:02:50.9]} 9... cxb6 {[%clk 0:02:48.8]} 10.
c4 {[%clk 0:02:51.6]} 10... Nbd7 {[%clk 0:02:49.4]} 11. d4 {[%clk 0:02:50.7]}
11... Rc8 {[%clk 0:02:49.4]} 12. Qb3 {[%clk 0:02:48.5]} 12... Qc7 {[%clk
0:02:47.8]} 13. Nbd2 {[%clk 0:02:48.2]} 13... Ne4 {[%clk 0:02:48.2]} 14. Rfc1
{[%clk 0:02:42.5]} 14... Nxd2 {[%clk 0:02:46]} 15. Nxd2 {[%clk 0:02:43.4]} 15...
Bxg2 {[%clk 0:02:46.4]} 16. Kxg2 {[%clk 0:02:44.3]} 16... Qb7+ {[%clk
0:02:44.5]} 17. Qf3 {[%clk 0:02:42.6]} 17... Qxf3+ {[%clk 0:02:36.3]} 18. Kxf3
{[%clk 0:02:43.5]} 18... e5 {[%clk 0:02:32.6]} 19. e3 {[%clk 0:02:31]} 19... Ra8
{[%clk 0:02:26.4]} 20. Ne4 {[%clk 0:02:28.6]} 20... exd4 {[%clk 0:02:13.5]} 21.
exd4 {[%clk 0:02:25.2]} 21... Rfd8 {[%clk 0:01:51.6]} 22. Nxd6 {[%clk
0:02:11.6]} 22... Nf8 {[%clk 0:01:46]} 23. c5 {[%clk 0:02:08.1]} 23... bxc5
{[%clk 0:01:39.6]} 24. bxc5 {[%clk 0:02:09]} 24... Ne6 {[%clk 0:01:38.7]} 25.
Ke4 {[%clk 0:02:09]} 25... Nxc5+ {[%clk 0:01:30.1]} 26. dxc5 {[%clk 0:01:49.2]}
26... Bxb2 {[%clk 0:01:29.4]} 27. Kd5 {[%clk 0:01:50.1]} 27... Kf8 {[%clk
0:01:19.9]} 28. c6 {[%clk 0:01:48.5]} 28... Rac8 {[%clk 0:00:23.5]} 29. Re1
{[%clk 0:01:32.7]} 29... Bxa1 {[%clk 0:00:16.3]} 30. Rxa1 {[%clk 0:01:33.6]}
30... Ke7 {[%clk 0:00:11.8]} 31. Re1+ {[%clk 0:01:32.4]} 31... Kf6 {[%clk
0:00:12.2]} 32. Kc5 {[%clk 0:01:30.8]} 32... Rc7 {[%clk 0:00:11.6]} 33. Ne8+
{[%clk 0:01:30.8]} 33... Rxe8 {[%clk 0:00:11.6]} 34. Rxe8 {[%clk 0:01:31.7]}
34... a5 {[%clk 0:00:11.5]} 35. Kd6 {[%clk 0:01:32]} 35... Ra7 {[%clk
0:00:08.8]} 36. c7 {[%clk 0:01:32.4]} 36... Rxc7 {[%clk 0:00:08]} 37. Kxc7
{[%clk 0:01:32.6]} 37... a4 {[%clk 0:00:08.9]} 38. Kd6 {[%clk 0:01:30.6]} 38...
a3 {[%clk 0:00:09.8]} 39. Kd5 {[%clk 0:01:27.9]} 39... a2 {[%clk 0:00:10.7]} 40.
Ra8 {[%clk 0:01:27.5]} 40... a1=Q {[%clk 0:00:09.8]} 41. Rxa1 {[%clk 0:01:27.7]}
1-0

[Event "Early-Titled-Tuesday-Blitz-June-18-2024"]
[Site "Chess.com"]
[Date "2024.06.18"]
[Round "2"]
[White "GeorgiosSouleidis"]
[Black "Dreamer_01"]
[Result "1-0"]
[WhiteElo "2699"]
[BlackElo "2393"]
[TimeControl "180+1"]
[EndTime "8:17:06 PDT"]
[Termination "GeorgiosSouleidis won by resignation"]

1. e4 {[%clk 0:03:00.9]} 1... e6 {[%clk 0:03:00.1]} 2. d4 {[%clk 0:03:00.8]}
2... d5 {[%clk 0:03:00.4]} 3. Nc3 {[%clk 0:02:58.7]} 3... dxe4 {[%clk
0:02:59.2]} 4. Nxe4 {[%clk 0:02:55.5]} 4... Nf6 {[%clk 0:02:56.7]} 5. Nxf6+
{[%clk 0:02:54.6]} 5... gxf6 {[%clk 0:02:57]} 6. Nf3 {[%clk 0:02:53.7]} 6... Be7
{[%clk 0:02:49.3]} 7. g3 {[%clk 0:02:49]} 7... c5 {[%clk 0:02:45.2]} 8. Bg2
{[%clk 0:02:47.4]} 8... Nc6 {[%clk 0:02:43.5]} 9. Be3 {[%clk 0:02:45.4]} 9...
cxd4 {[%clk 0:02:30.2]} 10. Nxd4 {[%clk 0:02:45.8]} 10... Nxd4 {[%clk
0:02:29.2]} 11. Qxd4 {[%clk 0:02:46.7]} 11... Qxd4 {[%clk 0:02:23.7]} 12. Bxd4
{[%clk 0:02:46.9]} 12... e5 {[%clk 0:02:24.2]} 13. Be3 {[%clk 0:02:43]} 13...
O-O {[%clk 0:02:15.1]} 14. O-O-O {[%clk 0:02:42.1]} 14... a5 {[%clk 0:01:58]}
15. Rd2 {[%clk 0:02:17.8]} 15... a4 {[%clk 0:01:57.1]} 16. a3 {[%clk 0:02:16.8]}
16... Ra5 {[%clk 0:01:27.7]} 17. Rhd1 {[%clk 0:02:07.3]} 17... Be6 {[%clk
0:01:15.2]} 18. Bxb7 {[%clk 0:01:58.4]} 18... Rb8 {[%clk 0:01:06.3]} 19. Bd5
{[%clk 0:01:51.7]} 19... Rab5 {[%clk 0:00:59.8]} 20. Bxe6 {[%clk 0:01:51.7]}
20... Rxb2 {[%clk 0:00:44.8]} 21. Rd8+ {[%clk 0:01:24.3]} 21... Bxd8 {[%clk
0:00:19.8]} 22. Rxd8+ {[%clk 0:01:25.2]} 22... Kg7 {[%clk 0:00:19]} 23. Rxb8
{[%clk 0:01:24.9]} 23... Rxb8 {[%clk 0:00:19.9]} 24. Bd7 {[%clk 0:01:21.8]}
24... Ra8 {[%clk 0:00:19.6]} 25. c4 {[%clk 0:01:12.8]} 25... Kf8 {[%clk
0:00:18.8]} 26. Bc5+ {[%clk 0:01:11.4]} 26... Kg7 {[%clk 0:00:18.9]} 27. Bb4
{[%clk 0:01:10.8]} 27... h5 {[%clk 0:00:12.8]} 28. c5 {[%clk 0:01:10.8]} 28...
Ra7 {[%clk 0:00:08.1]} 29. c6 {[%clk 0:01:08.6]} 1-0

[Event "Early-Titled-Tuesday-Blitz-June-18-2024"]
[Site "Chess.com"]
[Date "2024.06.18"]
[Round "2"]
[White "Ranindu2003"]
[Black "David_ATM"]
[Result "1-0"]
[WhiteElo "2712"]
[BlackElo "2419"]
[TimeControl "180+1"]
[EndTime "8:17:07 PDT"]
[Termination "Ranindu2003 won by checkmate"]

1. Nf3 {[%clk 0:03:00.9]} 1... d5 {[%clk 0:03:00.3]} 2. e3 {[%clk 0:02:59.9]}
2... c6 {[%clk 0:03:01.2]} 3. c4 {[%clk 0:02:59.5]} 3... Nf6 {[%clk 0:03:01.3]}
4. Nc3 {[%clk 0:02:59.6]} 4... Bf5 {[%clk 0:03:01.6]} 5. cxd5 {[%clk 0:02:59.4]}
5... Nxd5 {[%clk 0:03:02.5]} 6. Nxd5 {[%clk 0:02:54.1]} 6... Qxd5 {[%clk
0:02:57.4]} 7. b3 {[%clk 0:02:50.8]} 7... Bd3 {[%clk 0:02:45.5]} 8. Bxd3 {[%clk
0:02:43.8]} 8... Qxd3 {[%clk 0:02:46.4]} 9. Bb2 {[%clk 0:02:44.7]} 9... Nd7
{[%clk 0:02:45]} 10. Qe2 {[%clk 0:02:41.5]} 10... Qxe2+ {[%clk 0:02:43.5]} 11.
Kxe2 {[%clk 0:02:42.4]} 11... e6 {[%clk 0:02:40.4]} 12. Rac1 {[%clk 0:02:39]}
12... Bd6 {[%clk 0:02:37.7]} 13. g4 {[%clk 0:02:32.7]} 13... f6 {[%clk
0:02:30.7]} 14. h4 {[%clk 0:02:31.9]} 14... Kf7 {[%clk 0:02:29.7]} 15. g5 {[%clk
0:02:28.8]} 15... e5 {[%clk 0:02:18.5]} 16. d3 {[%clk 0:02:21.3]} 16... f5
{[%clk 0:02:14.5]} 17. h5 {[%clk 0:02:18.7]} 17... g6 {[%clk 0:02:11.4]} 18.
Rcd1 {[%clk 0:02:05]} 18... Bc7 {[%clk 0:02:01.3]} 19. Rh4 {[%clk 0:01:56.1]}
19... Rhg8 {[%clk 0:01:25.4]} 20. hxg6+ {[%clk 0:01:26.6]} 20... hxg6 {[%clk
0:01:24.8]} 21. d4 {[%clk 0:01:27.1]} 21... e4 {[%clk 0:01:24.6]} 22. Ne5+
{[%clk 0:01:26.8]} 22... Nxe5 {[%clk 0:00:07.7]} 23. dxe5 {[%clk 0:01:27.7]}
23... Ke6 {[%clk 0:00:08.3]} 24. Rh7 {[%clk 0:01:21.9]} 24... Rac8 {[%clk
0:00:08]} 25. Ba3 {[%clk 0:01:11.2]} 25... Rge8 {[%clk 0:00:07.5]} 26. Bd6
{[%clk 0:01:11]} 26... Bxd6 {[%clk 0:00:06.5]} 27. exd6 {[%clk 0:01:10.8]} 27...
Rcd8 {[%clk 0:00:06.8]} 28. Rg7 {[%clk 0:01:06.9]} 28... Rg8 {[%clk 0:00:05.9]}
29. Re7# {[%clk 0:01:06.9]} 1-0

[Event "Early-Titled-Tuesday-Blitz-June-18-2024"]
[Site "Chess.com"]
[Date "2024.06.18"]
[Round "2"]
[White "Matalon"]
[Black "Boudicca64"]
[Result "1-0"]
[WhiteElo "2440"]
[BlackElo "1834"]
[TimeControl "180+1"]
[EndTime "8:17:08 PDT"]
[Termination "Matalon won by checkmate"]

1. e4 {[%clk 0:03:00.9]} 1... g6 {[%clk 0:02:57.8]} 2. d4 {[%clk 0:02:59.9]}
2... Bg7 {[%clk 0:02:57.2]} 3. Nc3 {[%clk 0:03:00.4]} 3... c5 {[%clk 0:02:56.7]}
4. Nf3 {[%clk 0:02:58.3]} 4... Qa5 {[%clk 0:02:54.6]} 5. Be2 {[%clk 0:02:50.6]}
5... Nf6 {[%clk 0:02:52.6]} 6. O-O {[%clk 0:02:49.1]} 6... d6 {[%clk 0:02:50.5]}
7. Re1 {[%clk 0:02:11.8]} 7... O-O {[%clk 0:02:40.2]} 8. dxc5 {[%clk 0:01:58.9]}
8... Qxc5 {[%clk 0:02:37.6]} 9. h3 {[%clk 0:01:54.2]} 9... a6 {[%clk 0:02:28.6]}
10. Be3 {[%clk 0:01:48.3]} 10... Qc7 {[%clk 0:02:26.6]} 11. Qd2 {[%clk
0:01:43.3]} 11... b5 {[%clk 0:02:23.6]} 12. Bh6 {[%clk 0:01:39.9]} 12... b4
{[%clk 0:02:21]} 13. Nd5 {[%clk 0:01:39.8]} 13... Nxd5 {[%clk 0:02:06.9]} 14.
exd5 {[%clk 0:01:40.7]} 14... Nd7 {[%clk 0:01:56.2]} 15. Bxg7 {[%clk 0:01:36.7]}
15... Kxg7 {[%clk 0:01:55]} 16. Qxb4 {[%clk 0:01:36.6]} 16... Rb8 {[%clk
0:01:51.6]} 17. Qd4+ {[%clk 0:01:35.3]} 17... Nf6 {[%clk 0:01:48.2]} 18. c4
{[%clk 0:01:35]} 18... Bf5 {[%clk 0:01:19.2]} 19. b3 {[%clk 0:01:34.1]} 19...
Kg8 {[%clk 0:01:11.8]} 20. Bd3 {[%clk 0:01:24]} 20... Bxd3 {[%clk 0:00:55.3]}
21. Qxd3 {[%clk 0:01:24.9]} 21... a5 {[%clk 0:00:53.3]} 22. Qd4 {[%clk
0:01:25.8]} 22... a4 {[%clk 0:00:50.3]} 23. Re3 {[%clk 0:01:23.3]} 23... Rb4
{[%clk 0:00:43.9]} 24. Rae1 {[%clk 0:01:21.4]} 24... Re8 {[%clk 0:00:34.2]} 25.
Nd2 {[%clk 0:01:14.4]} 25... Kf8 {[%clk 0:00:17.5]} 26. g4 {[%clk 0:01:11.5]}
26... h6 {[%clk 0:00:15.5]} 27. h4 {[%clk 0:01:08.3]} 27... g5 {[%clk
0:00:13.3]} 28. hxg5 {[%clk 0:01:01.6]} 28... hxg5 {[%clk 0:00:12.3]} 29. Ne4
{[%clk 0:01:02.2]} 29... Nxe4 {[%clk 0:00:10]} 30. Qh8# {[%clk 0:01:01.5]} 1-0

[Event "Early-Titled-Tuesday-Blitz-June-18-2024"]
[Site "Chess.com"]
[Date "2024.06.18"]
[Round "2"]
[White "vladgoncharov"]
[Black "Prizant_academy"]
[Result "0-1"]
[WhiteElo "2649"]
[BlackElo "2985"]
[TimeControl "180+1"]
[EndTime "8:17:10 PDT"]
[Termination "Prizant_academy won by resignation"]

1. d4 {[%clk 0:03:00.9]} 1... d5 {[%clk 0:03:00.2]} 2. c4 {[%clk 0:03:00.7]}
2... e6 {[%clk 0:03:00.1]} 3. Nc3 {[%clk 0:02:59.1]} 3... c6 {[%clk 0:03:00.4]}
4. e3 {[%clk 0:02:57.9]} 4... Nf6 {[%clk 0:03:00.5]} 5. Nf3 {[%clk 0:02:56.6]}
5... Nbd7 {[%clk 0:03:00.7]} 6. Bd3 {[%clk 0:02:56.2]} 6... dxc4 {[%clk
0:03:00.2]} 7. Bxc4 {[%clk 0:02:56.2]} 7... b5 {[%clk 0:03:00.9]} 8. Bd3 {[%clk
0:02:56.5]} 8... Bb7 {[%clk 0:03:01.4]} 9. O-O {[%clk 0:02:50.7]} 9... a6 {[%clk
0:03:01.5]} 10. a4 {[%clk 0:02:50.6]} 10... b4 {[%clk 0:03:00.5]} 11. Nb1 {[%clk
0:02:50.8]} 11... c5 {[%clk 0:02:58.7]} 12. Qe2 {[%clk 0:02:47.2]} 12... cxd4
{[%clk 0:02:53.1]} 13. exd4 {[%clk 0:02:46.9]} 13... Be7 {[%clk 0:02:48.1]} 14.
Nbd2 {[%clk 0:02:46.5]} 14... O-O {[%clk 0:02:47.8]} 15. a5 {[%clk 0:02:46.2]}
15... Nd5 {[%clk 0:02:35.7]} 16. Nc4 {[%clk 0:02:45.4]} 16... Qc7 {[%clk
0:02:20.6]} 17. Nfe5 {[%clk 0:02:37.2]} 17... Nxe5 {[%clk 0:01:57.8]} 18. Nxe5
{[%clk 0:02:33.7]} 18... Bf6 {[%clk 0:01:52.9]} 19. Bd2 {[%clk 0:02:09.7]} 19...
g6 {[%clk 0:01:42.6]} 20. Rfc1 {[%clk 0:02:08]} 20... Qd6 {[%clk 0:01:36.9]} 21.
Rc5 {[%clk 0:01:50.7]} 21... Rfc8 {[%clk 0:01:28]} 22. Rac1 {[%clk 0:01:43.6]}
22... Rxc5 {[%clk 0:01:26.2]} 23. Rxc5 {[%clk 0:01:43.1]} 23... Rc8 {[%clk
0:01:24.3]} 24. Rxc8+ {[%clk 0:00:47.4]} 24... Bxc8 {[%clk 0:01:25.2]} 25. h3
{[%clk 0:00:42.3]} 25... Bb7 {[%clk 0:01:21.5]} 26. Be1 {[%clk 0:00:37.4]} 26...
Nf4 {[%clk 0:01:17]} 27. Qe3 {[%clk 0:00:23.4]} 27... Nxg2 {[%clk 0:01:16.3]}
28. Nc4 {[%clk 0:00:18.1]} 28... Qd5 {[%clk 0:01:05.9]} 29. Qg3 {[%clk
0:00:10.5]} 29... Nxe1 {[%clk 0:01:01.6]} 0-1

[Event "Early-Titled-Tuesday-Blitz-June-18-2024"]
[Site "Chess.com"]
[Date "2024.06.18"]
[Round "2"]
[White "xasid81"]
[Black "Timurist"]
[Result "1-0"]
[WhiteElo "2616"]
[BlackElo "2387"]
[TimeControl "180+1"]
[EndTime "8:17:10 PDT"]
[Termination "xasid81 won by resignation"]

1. c4 {[%clk 0:03:00.9]} 1... c5 {[%clk 0:02:51.9]} 2. Nf3 {[%clk 0:02:57.9]}
2... b5 {[%clk 0:02:50.6]} 3. Nc3 {[%clk 0:02:58.3]} 3... a6 {[%clk 0:02:45.1]}
4. cxb5 {[%clk 0:02:57.8]} 4... axb5 {[%clk 0:02:45.3]} 5. Nxb5 {[%clk
0:02:58.7]} 5... Ba6 {[%clk 0:02:39.9]} 6. Nc3 {[%clk 0:02:57.1]} 6... d6 {[%clk
0:02:28.9]} 7. g3 {[%clk 0:02:56.2]} 7... g6 {[%clk 0:02:28.8]} 8. Bg2 {[%clk
0:02:56.2]} 8... Bg7 {[%clk 0:02:23.5]} 9. O-O {[%clk 0:02:55.2]} 9... Nc6
{[%clk 0:02:13.8]} 10. b3 {[%clk 0:02:53.1]} 10... Nf6 {[%clk 0:02:11.8]} 11.
Bb2 {[%clk 0:02:52.9]} 11... O-O {[%clk 0:02:11.7]} 12. d3 {[%clk 0:02:51.6]}
12... Rb8 {[%clk 0:01:57.9]} 13. Nd2 {[%clk 0:02:50.6]} 13... Qc7 {[%clk
0:01:52.9]} 14. Nc4 {[%clk 0:02:47.6]} 14... Rfd8 {[%clk 0:01:37.4]} 15. Ne3
{[%clk 0:02:46.7]} 15... e6 {[%clk 0:01:34.2]} 16. Nc2 {[%clk 0:02:44.9]} 16...
d5 {[%clk 0:01:29]} 17. Qc1 {[%clk 0:02:43.8]} 17... Nd7 {[%clk 0:01:13.9]} 18.
Na4 {[%clk 0:02:43]} 18... Rdc8 {[%clk 0:01:12.6]} 19. Bxg7 {[%clk 0:02:42.7]}
19... Kxg7 {[%clk 0:01:13.5]} 20. Ne3 {[%clk 0:02:41.8]} 20... Nd4 {[%clk
0:01:10.6]} 21. Re1 {[%clk 0:02:38.3]} 21... Qa5 {[%clk 0:01:06.5]} 22. Nc2
{[%clk 0:02:34.5]} 22... Nb5 {[%clk 0:00:48.7]} 23. h4 {[%clk 0:02:26.2]} 23...
c4 {[%clk 0:00:44]} 24. bxc4 {[%clk 0:02:19.1]} 24... dxc4 {[%clk 0:00:44.2]}
25. Nb2 {[%clk 0:02:13.4]} 25... cxd3 {[%clk 0:00:36.6]} 26. Nxd3 {[%clk
0:02:14.3]} 26... Nd4 {[%clk 0:00:31.8]} 27. Qa3 {[%clk 0:02:02.9]} 27... Qxa3
{[%clk 0:00:26.1]} 28. Nxa3 {[%clk 0:02:03.8]} 28... Bxd3 {[%clk 0:00:25.8]} 29.
exd3 {[%clk 0:02:03.8]} 29... Rb2 {[%clk 0:00:23.9]} 30. Reb1 {[%clk 0:01:56.9]}
30... Rcb8 {[%clk 0:00:22.9]} 31. Rxb2 {[%clk 0:01:56.2]} 31... Rxb2 {[%clk
0:00:23.8]} 32. Nc4 {[%clk 0:01:56.2]} 32... Rc2 {[%clk 0:00:22.3]} 33. a4
{[%clk 0:01:55.2]} 33... Nc5 {[%clk 0:00:20.1]} 34. a5 {[%clk 0:01:52.8]} 34...
Ndb3 {[%clk 0:00:20]} 35. Ra3 {[%clk 0:01:45.6]} 35... Nd4 {[%clk 0:00:16.7]}
36. a6 {[%clk 0:01:44]} 36... Nxd3 {[%clk 0:00:17.3]} 37. Rxd3 {[%clk
0:01:40.4]} 37... Rxc4 {[%clk 0:00:17.9]} 38. Rxd4 {[%clk 0:01:37.1]} 38... Rxd4
{[%clk 0:00:18]} 39. a7 {[%clk 0:01:37.8]} 39... Ra4 {[%clk 0:00:18.9]} 40. a8=Q
{[%clk 0:01:37.9]} 40... Rxa8 {[%clk 0:00:19.4]} 41. Bxa8 {[%clk 0:01:38.3]}
41... Kf6 {[%clk 0:00:19.5]} 42. Bg2 {[%clk 0:01:39.2]} 42... Ke5 {[%clk
0:00:20]} 43. Kf1 {[%clk 0:01:40.1]} 43... Kd4 {[%clk 0:00:20.6]} 44. Ke2 {[%clk
0:01:41]} 44... e5 {[%clk 0:00:21.2]} 45. Bc6 {[%clk 0:01:40]} 45... h6 {[%clk
0:00:20.2]} 46. Be8 {[%clk 0:01:40.1]} 46... g5 {[%clk 0:00:20.3]} 47. hxg5
{[%clk 0:01:39.4]} 47... hxg5 {[%clk 0:00:21.2]} 48. Bxf7 {[%clk 0:01:39.9]}
48... Ke4 {[%clk 0:00:21.6]} 49. Bg6+ {[%clk 0:01:39.7]} 49... Kd4 {[%clk
0:00:21.7]} 50. Kf3 {[%clk 0:01:40.6]} 50... e4+ {[%clk 0:00:22]} 51. Bxe4
{[%clk 0:01:40.1]} 51... g4+ {[%clk 0:00:22.1]} 52. Kf4 {[%clk 0:01:40.8]} 1-0

[Event "Early-Titled-Tuesday-Blitz-June-18-2024"]
[Site "Chess.com"]
[Date "2024.06.18"]
[Round "2"]
[White "VerdeNotte"]
[Black "Sic_Transit_GM"]
[Result "1-0"]
[WhiteElo "2845"]
[BlackElo "2590"]
[TimeControl "180+1"]
[EndTime "8:17:13 PDT"]
[Termination "VerdeNotte won by checkmate"]

1. Nf3 {[%clk 0:03:00.9]} 1... d5 {[%clk 0:02:59.8]} 2. g3 {[%clk 0:03:00.8]}
2... Bg4 {[%clk 0:02:59.9]} 3. Bg2 {[%clk 0:03:00.3]} 3... Nd7 {[%clk
0:03:00.5]} 4. h3 {[%clk 0:03:00.4]} 4... Bxf3 {[%clk 0:02:59.8]} 5. Bxf3 {[%clk
0:03:00.5]} 5... c6 {[%clk 0:03:00.7]} 6. O-O {[%clk 0:02:59.9]} 6... e6 {[%clk
0:03:01.3]} 7. d3 {[%clk 0:02:59.7]} 7... Ngf6 {[%clk 0:03:02]} 8. e4 {[%clk
0:02:59.1]} 8... dxe4 {[%clk 0:02:55.5]} 9. dxe4 {[%clk 0:02:59]} 9... Bc5
{[%clk 0:02:56]} 10. Nd2 {[%clk 0:02:57]} 10... e5 {[%clk 0:02:55.6]} 11. Nc4
{[%clk 0:02:55.5]} 11... Qc7 {[%clk 0:02:53.6]} 12. Be3 {[%clk 0:02:53.6]} 12...
Be7 {[%clk 0:02:50.5]} 13. Qe2 {[%clk 0:02:38.1]} 13... O-O {[%clk 0:02:50.1]}
14. a4 {[%clk 0:02:27.6]} 14... b5 {[%clk 0:02:38.4]} 15. Nd2 {[%clk 0:02:16.3]}
15... a6 {[%clk 0:02:33.9]} 16. h4 {[%clk 0:02:10.4]} 16... Rfd8 {[%clk
0:02:32.8]} 17. h5 {[%clk 0:02:09.9]} 17... h6 {[%clk 0:02:32.7]} 18. Bg2 {[%clk
0:02:08.3]} 18... Nf8 {[%clk 0:02:28.7]} 19. Bh3 {[%clk 0:02:06.9]} 19... Rab8
{[%clk 0:01:51.8]} 20. axb5 {[%clk 0:02:02.5]} 20... cxb5 {[%clk 0:01:49.2]} 21.
Nb3 {[%clk 0:01:50]} 21... Nxe4 {[%clk 0:01:43]} 22. Bxh6 {[%clk 0:01:39.9]}
22... Qc4 {[%clk 0:01:06.8]} 23. Qg4 {[%clk 0:01:33.4]} 23... Bf6 {[%clk
0:00:59.5]} 24. Rxa6 {[%clk 0:01:24.5]} 24... Ng5 {[%clk 0:00:47.7]} 25. Bxg5
{[%clk 0:01:23.4]} 25... Qxg4 {[%clk 0:00:47.3]} 26. Bxg4 {[%clk 0:01:24.3]}
26... Bxg5 {[%clk 0:00:47.9]} 27. Nc5 {[%clk 0:01:20.8]} 27... Rd2 {[%clk
0:00:45]} 28. Ne4 {[%clk 0:01:20.5]} 28... Rxc2 {[%clk 0:00:39.4]} 29. Nxg5
{[%clk 0:01:20.4]} 29... Rxb2 {[%clk 0:00:40.3]} 30. Ra7 {[%clk 0:01:14.6]}
30... b4 {[%clk 0:00:40.5]} 31. Nxf7 {[%clk 0:01:13.9]} 31... b3 {[%clk
0:00:35.6]} 32. h6 {[%clk 0:01:13.6]} 32... gxh6 {[%clk 0:00:20.5]} 33. Nxh6+
{[%clk 0:01:13.2]} 33... Kh8 {[%clk 0:00:21.4]} 34. Kg2 {[%clk 0:01:10.9]} 34...
Rd2 {[%clk 0:00:13.2]} 35. Rh1 {[%clk 0:01:10.5]} 35... b2 {[%clk 0:00:13.5]}
36. Nf5+ {[%clk 0:01:08.9]} 36... Kg8 {[%clk 0:00:13.7]} 37. Rg7# {[%clk
0:01:08.3]} 1-0